{"text_format":"1","workbook":"xlsx","n_sheets":2,"sheets":["Samenvatting","Afwegingskader"],"not_rendered":{"charts":0,"images":0,"macros":1,"external_links":0,"defined_names":1,"comments":0,"pivot_tables":0},"unopened":[],"bounds":{"document_bytes":16777216,"sheet_cells":100000,"rows_first":2000,"rows_last":500,"rows_between":2000,"halvings":0,"cell_chars":16384,"cell_head_chars":4096},"cells_cut":0,"cells_raw":0,"read":"whole","date_system":"1900"}

{"sheet":"Samenvatting","index":0,"n_rows":30,"n_cols":6,"rows_kept":30,"cut":false,"hidden":false,"merged":[[24,0,28,0]]}
["Maatregel","Categorie","Randvoorwaarden","Ecologisch effect","Kosten","TRL"]
[]
[]
[]
[]
[]
[]
[]
[null,{"$f":"IF(ISBLANK($A9),\"\",INDIRECT(\"'\"&$A9&\"'\"&\"!B6\"))","v":""},{"$f":"IF(ISBLANK($A9),\"\",INDIRECT(\"'\"&$A9&\"'\"&\"!C6\"))","v":""},{"$f":"IF(ISBLANK($A9),\"\",INDIRECT(\"'\"&$A9&\"'\"&\"!D6\"))","v":""},{"$f":"IF(ISBLANK($A9),\"\",INDIRECT(\"'\"&$A9&\"'\"&\"!F6\"))","v":""},{"$f":"IF(ISBLANK($A9),\"\",INDIRECT(\"'\"&$A9&\"'\"&\"!E6\"))","v":""}]
[null,{"$f":"IF(ISBLANK($A10),\"\",INDIRECT(\"'\"&$A10&\"'\"&\"!B6\"))","v":""},{"$f":"IF(ISBLANK($A10),\"\",INDIRECT(\"'\"&$A10&\"'\"&\"!C6\"))","v":""},{"$f":"IF(ISBLANK($A10),\"\",INDIRECT(\"'\"&$A10&\"'\"&\"!D6\"))","v":""},{"$f":"IF(ISBLANK($A10),\"\",INDIRECT(\"'\"&$A10&\"'\"&\"!F6\"))","v":""},{"$f":"IF(ISBLANK($A10),\"\",INDIRECT(\"'\"&$A10&\"'\"&\"!E6\"))","v":""}]
[null,{"$f":"IF(ISBLANK($A11),\"\",INDIRECT(\"'\"&$A11&\"'\"&\"!B6\"))","v":""},{"$f":"IF(ISBLANK($A11),\"\",INDIRECT(\"'\"&$A11&\"'\"&\"!C6\"))","v":""},{"$f":"IF(ISBLANK($A11),\"\",INDIRECT(\"'\"&$A11&\"'\"&\"!D6\"))","v":""},{"$f":"IF(ISBLANK($A11),\"\",INDIRECT(\"'\"&$A11&\"'\"&\"!F6\"))","v":""},{"$f":"IF(ISBLANK($A11),\"\",INDIRECT(\"'\"&$A11&\"'\"&\"!E6\"))","v":""}]
[null,{"$f":"IF(ISBLANK($A12),\"\",INDIRECT(\"'\"&$A12&\"'\"&\"!B6\"))","v":""},{"$f":"IF(ISBLANK($A12),\"\",INDIRECT(\"'\"&$A12&\"'\"&\"!C6\"))","v":""},{"$f":"IF(ISBLANK($A12),\"\",INDIRECT(\"'\"&$A12&\"'\"&\"!D6\"))","v":""},{"$f":"IF(ISBLANK($A12),\"\",INDIRECT(\"'\"&$A12&\"'\"&\"!F6\"))","v":""},{"$f":"IF(ISBLANK($A12),\"\",INDIRECT(\"'\"&$A12&\"'\"&\"!E6\"))","v":""}]
[null,{"$f":"IF(ISBLANK($A13),\"\",INDIRECT(\"'\"&$A13&\"'\"&\"!B6\"))","v":""},{"$f":"IF(ISBLANK($A13),\"\",INDIRECT(\"'\"&$A13&\"'\"&\"!C6\"))","v":""},{"$f":"IF(ISBLANK($A13),\"\",INDIRECT(\"'\"&$A13&\"'\"&\"!D6\"))","v":""},{"$f":"IF(ISBLANK($A13),\"\",INDIRECT(\"'\"&$A13&\"'\"&\"!F6\"))","v":""},{"$f":"IF(ISBLANK($A13),\"\",INDIRECT(\"'\"&$A13&\"'\"&\"!E6\"))","v":""}]
[null,{"$f":"IF(ISBLANK($A14),\"\",INDIRECT(\"'\"&$A14&\"'\"&\"!B6\"))","v":""},{"$f":"IF(ISBLANK($A14),\"\",INDIRECT(\"'\"&$A14&\"'\"&\"!C6\"))","v":""},{"$f":"IF(ISBLANK($A14),\"\",INDIRECT(\"'\"&$A14&\"'\"&\"!D6\"))","v":""},{"$f":"IF(ISBLANK($A14),\"\",INDIRECT(\"'\"&$A14&\"'\"&\"!F6\"))","v":""},{"$f":"IF(ISBLANK($A14),\"\",INDIRECT(\"'\"&$A14&\"'\"&\"!E6\"))","v":""}]
[null,{"$f":"IF(ISBLANK($A15),\"\",INDIRECT(\"'\"&$A15&\"'\"&\"!B6\"))","v":""},{"$f":"IF(ISBLANK($A15),\"\",INDIRECT(\"'\"&$A15&\"'\"&\"!C6\"))","v":""},{"$f":"IF(ISBLANK($A15),\"\",INDIRECT(\"'\"&$A15&\"'\"&\"!D6\"))","v":""},{"$f":"IF(ISBLANK($A15),\"\",INDIRECT(\"'\"&$A15&\"'\"&\"!F6\"))","v":""},{"$f":"IF(ISBLANK($A15),\"\",INDIRECT(\"'\"&$A15&\"'\"&\"!E6\"))","v":""}]
[null,{"$f":"IF(ISBLANK($A16),\"\",INDIRECT(\"'\"&$A16&\"'\"&\"!B6\"))","v":""},{"$f":"IF(ISBLANK($A16),\"\",INDIRECT(\"'\"&$A16&\"'\"&\"!C6\"))","v":""},{"$f":"IF(ISBLANK($A16),\"\",INDIRECT(\"'\"&$A16&\"'\"&\"!D6\"))","v":""},{"$f":"IF(ISBLANK($A16),\"\",INDIRECT(\"'\"&$A16&\"'\"&\"!F6\"))","v":""},{"$f":"IF(ISBLANK($A16),\"\",INDIRECT(\"'\"&$A16&\"'\"&\"!E6\"))","v":""}]
[null,{"$f":"IF(ISBLANK($A17),\"\",INDIRECT(\"'\"&$A17&\"'\"&\"!B6\"))","v":""},{"$f":"IF(ISBLANK($A17),\"\",INDIRECT(\"'\"&$A17&\"'\"&\"!C6\"))","v":""},{"$f":"IF(ISBLANK($A17),\"\",INDIRECT(\"'\"&$A17&\"'\"&\"!D6\"))","v":""},{"$f":"IF(ISBLANK($A17),\"\",INDIRECT(\"'\"&$A17&\"'\"&\"!F6\"))","v":""},{"$f":"IF(ISBLANK($A17),\"\",INDIRECT(\"'\"&$A17&\"'\"&\"!E6\"))","v":""}]
[null,{"$f":"IF(ISBLANK($A18),\"\",INDIRECT(\"'\"&$A18&\"'\"&\"!B6\"))","v":""},{"$f":"IF(ISBLANK($A18),\"\",INDIRECT(\"'\"&$A18&\"'\"&\"!C6\"))","v":""},{"$f":"IF(ISBLANK($A18),\"\",INDIRECT(\"'\"&$A18&\"'\"&\"!D6\"))","v":""},{"$f":"IF(ISBLANK($A18),\"\",INDIRECT(\"'\"&$A18&\"'\"&\"!F6\"))","v":""},{"$f":"IF(ISBLANK($A18),\"\",INDIRECT(\"'\"&$A18&\"'\"&\"!E6\"))","v":""}]
[null,{"$f":"IF(ISBLANK($A19),\"\",INDIRECT(\"'\"&$A19&\"'\"&\"!B6\"))","v":""},{"$f":"IF(ISBLANK($A19),\"\",INDIRECT(\"'\"&$A19&\"'\"&\"!C6\"))","v":""},{"$f":"IF(ISBLANK($A19),\"\",INDIRECT(\"'\"&$A19&\"'\"&\"!D6\"))","v":""},{"$f":"IF(ISBLANK($A19),\"\",INDIRECT(\"'\"&$A19&\"'\"&\"!F6\"))","v":""},{"$f":"IF(ISBLANK($A19),\"\",INDIRECT(\"'\"&$A19&\"'\"&\"!E6\"))","v":""}]
[null,{"$f":"IF(ISBLANK($A20),\"\",INDIRECT(\"'\"&$A20&\"'\"&\"!B6\"))","v":""},{"$f":"IF(ISBLANK($A20),\"\",INDIRECT(\"'\"&$A20&\"'\"&\"!C6\"))","v":""},{"$f":"IF(ISBLANK($A20),\"\",INDIRECT(\"'\"&$A20&\"'\"&\"!D6\"))","v":""},{"$f":"IF(ISBLANK($A20),\"\",INDIRECT(\"'\"&$A20&\"'\"&\"!F6\"))","v":""},{"$f":"IF(ISBLANK($A20),\"\",INDIRECT(\"'\"&$A20&\"'\"&\"!E6\"))","v":""}]
[null,{"$f":"IF(ISBLANK($A21),\"\",INDIRECT(\"'\"&$A21&\"'\"&\"!B6\"))","v":""},{"$f":"IF(ISBLANK($A21),\"\",INDIRECT(\"'\"&$A21&\"'\"&\"!C6\"))","v":""},{"$f":"IF(ISBLANK($A21),\"\",INDIRECT(\"'\"&$A21&\"'\"&\"!D6\"))","v":""},{"$f":"IF(ISBLANK($A21),\"\",INDIRECT(\"'\"&$A21&\"'\"&\"!F6\"))","v":""},{"$f":"IF(ISBLANK($A21),\"\",INDIRECT(\"'\"&$A21&\"'\"&\"!E6\"))","v":""}]
[null,{"$f":"IF(ISBLANK($A22),\"\",INDIRECT(\"'\"&$A22&\"'\"&\"!B6\"))","v":""},{"$f":"IF(ISBLANK($A22),\"\",INDIRECT(\"'\"&$A22&\"'\"&\"!C6\"))","v":""},{"$f":"IF(ISBLANK($A22),\"\",INDIRECT(\"'\"&$A22&\"'\"&\"!D6\"))","v":""},{"$f":"IF(ISBLANK($A22),\"\",INDIRECT(\"'\"&$A22&\"'\"&\"!E6\"))","v":""},{"$f":"IF(ISBLANK($A22),\"\",INDIRECT(\"'\"&$A22&\"'\"&\"!F6\"))","v":""}]
[]
["INSTRUCTIE & UITLEG","STAP 1"]
["Begin bij stap 1 om de macro voor het afwegingskader uit te voeren. Door op de knop 'nieuwe maatregel' te klikken kunt u een nieuwe maatregel benoemen. Hiervoor wordt een nieuw blad aangemaakt dat ingevuld dient te worden. In bovenstaande tabel wordt de maatregel toegevoegd. Na het invullen van het gemaakte werkblad voor de maatregel worden de scores hier voor de verschillende aspecten weergegeven. "]
[]
[]
[]
[]
["Het werkblad bevat oranje cellen. Deze cellen dienen door u te worden ingevuld door middel van een vast aantal opties (dropdown menu) of door een vrije invulling. Dit staat in het werkblad aangegeven."]

{"sheet":"Afwegingskader","index":1,"n_rows":42,"n_cols":12,"rows_kept":42,"cut":false,"hidden":false,"merged":[[9,9,10,9]]}
["INSTRUCTIE","UITLEG BEREKENINGEN","MAATREGEL","BESCHRIJVING MAATREGEL","EXTRA OPMERKING/TOELICHTING",null,null,"CATEGORIE (KEUZE)","Natuurbeschermend","Natuurversterkend"]
["Oranje cellen zijn aanpasbaar. In kolom H kunt u a.d.h.v. een drop-down menu een keuze maken per onderdeel. Uw keuze kunt u eventueel toelichten in kolom L.","De score wordt berekend voor 4 verschillende aspecten: randvoorwaarden, ecologisch effect, TRL en impact. De totaalscore van het ecologische effect van een maatregel wordt, afhankelijk van het type maatregel, anders berekend. Dit is hieronder toegelicht.\n\nBij natuurbeschermingsmaatregelen worden de positieve effecten berekend door het gemiddelde van de afname van de drukfactor (areaal/slachtoffers/impact/duur) in combinatie met de mate van zekerheid te vermenigvuldigen met het deel van het gebied waarop dit van toepassing. Vervolgens wordt hier het gemiddelde van de negatieve factoren vanaf getrokken, om een totaaluitslag te bepalen voor de natuurbeschermingsmaatregel.\n\nBij de natuurversterkingsmaatregelen worden de gemiddeldes van de positieve scores en negatieve scores van elkaar afgetrokken. De reden voor deze andere benadering zit hem in het los beoordelen van de duur, waar dit in de natuurbeschermingsmaatregel impliciet wordt meegenomen. ",{"$f":"IF(ISBLANK(A6),\"\",A6)","v":""},"<in te vullen> ","<in te vullen> "]
[null,null,null,"STAP 2 ","STAP 2 "]
[null,"STAP 3"]
["Maatregel","Categorie","Randvoorwaarden",{"$f":"IF(ISBLANK(B6),\"Ecologisch effect\",IF(B6=A13,\"Ecologisch effect (beschermend)\",\"Ecologisch effect (natuurversterkend)\"))","v":"Ecologisch effect (beschermend)"},"TRL","Impact (kosten)"]
[null,"Natuurbeschermend",{"$f":"J10","v":""},{"$f":"IF(C6=\"stop\",\"stop\",IF(B6=A13,J14,J25))","v":""},{"$f":"IF(C6=\"stop\",\"stop\",J38)","v":""},{"$f":"IF(C6=\"stop\",\"stop\",J41)","v":""}]
[null,null,null,null,null,null,null,"STAP 4",null,null,null,"STAP 4"]
["Onderdeel","Criterium",null,null,null,null,null,"Beoordeling","Uitslag","Uitslag per onderdeel","Toelichting","Opmerkingen "]
["randvoorwaarden",null,null,null,null,"onvoldoende","voldoende"]
["veiligheid; verhoging veiligheidsrisico tijdens de installatiefase, operationele fase en ontmantelingsfase als gevolg van de maatregel is:",null,null,null,null,"Onacceptabel","Acceptabel",null,{"$f":"IF(ISBLANK(H10),\"\",IF((H10=F10),\"stop\",\"voldoende\"))","v":""},{"$f":"IF(COUNTIF(I10:I11,\"stop\")>0,\"stop\",IF(COUNTIF(I10:I11,\"voldoende\")>1,\"voldoende\",\"\"))","v":""},"mate van verhoging veiligheids- uitvoerings- en/of onderhoudsrisico’s tijdens de installatie of operationele fase","<in te vullen> "]
["vergunbaarheid; maatregel is onder huidige wet- en regelgeving:",null,null,null,null,"Niet vergunbaar","Mogelijk vergunbaar. Advies: neem contact op met bevoegd gezag",null,{"$f":"IF(ISBLANK(H11),\"\",IF((H11=F11),\"stop\",\"voldoende\"))","v":""},null,"mate waarin een maatregel vergunbaar is op basis van bestaande wetgeving","<in te vullen> "]
[]
["natuurbeschermend",null,null,null,null,null,null,null,"Uitslag sub-onderdeel","Uitslag totaal (natuurbeschermend)"]
["natuurbeschermend - positief",null,1,2,3,4,5,null,{"$f":"IF(SUM(I15:I16)>0,(I15+I16+I17+I18*3)/6, \"\")","v":""},{"$f":"IF(I14=\"\",\"\",SUM(I14,I19))","v":""}]
["afname areaal, slachtoffers en/of duur impact t.o.v. niet implementeren van de maatregel",null,"1-10%","11-30%","31-50%","51-80%",">80%",null,{"$f":"_xlfn.XLOOKUP(H15,C15:G15,$C$14:$G$14,\"\")","v":""},null,"Percentuele vermindering ten opzichte van de basisvariant","<in te vullen> "]
["bijdrage reduceren van aantal drukfactoren*",null,1,2,3,4,"5 of meer",null,{"$f":"_xlfn.XLOOKUP(H16,C16:G16,$C$14:$G$14,\"\")","v":""},null,"Betreft drukfactoren gebaseerd op OSPAR/KRM-descriptoren en Mariene Strategie Deel 1","<in te vullen> "]
["mate van zekerheid behalen resultaat",null,"niet bevestigd door monitoring/ onderzoek","enkel theoretisch/ hypothetisch effect onderbouwd door expert","effect bewezen in lab/ proef opstelling of door modellering","vergelijkbare maatregel effectief bewezen door monitoring/ onderzoek","maatregel bevestigd door monitoring/ onderzoek",null,{"$f":"_xlfn.XLOOKUP(H17,C17:G17,$C$14:$G$14,\"\")","v":""},null,"De mate van praktische toetsing van de ecologische effectiviteit van de maatregel vooraf ","<in te vullen> "]
["deel van het projectgebied waarop de maatregel effect heeft",null,"<10%","11-50% ","51%-90% ",">90% ","volledige voetafdruk inclusief externe werking (tot buiten projectgebied)",null,{"$f":"_xlfn.XLOOKUP(H18,C18:G18,$C$14:$G$14,\"\")","v":""},null,"Percentueel aandeel van het toepassingsgebied t.o.v. het hele projectgebied","<in te vullen> "]
["natuurbeschermend - negatief",-5,-4,-3,-2,-1,0,null,{"$f":"IF(ISBLANK(H20),\"\",IF(I20=0,0,AVERAGE(I20:I22)))","v":""}]
["toename van aantal drukfactoren*","5 of meer",4,3,2,1,"geen",null,{"$f":"IF(H20=\"-\",\"GEEN optie; gelieve >2, 1 of 0 kiezen\",_xlfn.XLOOKUP(H20,B20:G20,$B$19:$G$19,\"\"))","v":""},null,"Betreft drukfactoren gebaseerd op OSPAR/KRM-descriptoren en Mariene Strategie Deel 1","<in te vullen> "]
["toename intensiteit, areaal, of duur drukfactor in project (hoogste telt)",">80 %","51-80 %","31-50 %","11-30 %","1-10 %",0,null,{"$f":"_xlfn.XLOOKUP(H21,B21:G21,$B$19:$G$19,\"\")","v":""},null,"Mate van toename drukfactor in intensiteit, slachtoffers en areaal","<in te vullen> "]
["zekerheid negatief effect",null,"effect bevestigd door monitoring/ onderzoek","vergelijkbaar effectief bewezen door monitoring/ onderzoek","effect bewezen in lab/proef opstelling of door modellering","enkel theoretisch / hypothetisch effect onderbouwd door expert","niet bevestigd door monitoring/ onderzoek",null,{"$f":"IF(ISBLANK(H22),\"\",_xlfn.XLOOKUP(H22,B22:G22,$B$19:$G$19,\"\"))","v":""},null,"De mate van praktische toetsing van het negatieve effect van de maatregel vooraf ","<in te vullen> "]
[]
["natuurversterkend",null,null,null,null,null,null,null,"Uitslag sub-onderdeel","Uitslag totaal (natuurversterkend)"]
["natuurversterkend - positief","Niet van toepassing",1,2,3,4,5,null,{"$f":"IF(SUM(I26:I31)>0,AVERAGE(MAX(I26:I28),I29:I31),\"\")","v":""},{"$f":"IF(I25=\"\",\"\",SUM(I25,I32))","v":""}]
["# OSPAR / Natura 2000 habitats die profiteren van de maatregel",0,"-","-",1,2,"3 of meer",null,{"$f":"IF(H26=0,\"\",_xlfn.XLOOKUP(H26,E26:G26,E25:G25,\"Gelieve waarde invullen (0-3)\",0,1))","v":""},null,"Betreft aantal habitats onder OSPAR/Natura 2000","<in te vullen> "]
["# OSPAR / Natura 2000 soorten (niet-vogels) die profiteren van de maatregel",0,1,2,3,4,"5 of meer",null,{"$f":"IF(H27=0,\"\",_xlfn.XLOOKUP(H27,C27:G27,C25:G25,\"Gelieve waarde invullen (0-3)\",0,1))","v":""},null,"Betreft aantal soorten onder OSPAR/Natura 2000","<in te vullen> "]
["# OSPAR / Natura 2000 vogelsoorten die profiteren van de  maatregel",0,"1-2","3-4","5-6","7-9","9 of meer",null,{"$f":"IF(H28=0,\"\",_xlfn.XLOOKUP(H28,C28:G28,C25:G25,\"Gelieve waarde invullen (0-3)\",0,1))","v":""},null,"Betreft aantal vogelsoorten onder OSPAR/Natura 2000","<in te vullen> "]
["deel van het gebied waarop de maatregel een positief effect heeft t.o.v. van het projectgebied",null,"<10%","11-50 %","51-90 %",">90 %","volledig projectgebied en daar voorbij",null,{"$f":"_xlfn.XLOOKUP(H29,C29:G29,$C$25:$G$25,\"\")","v":""},null,"Percentueel aandeel van het toepassingsgebied t.o.v. het hele projectgebied","<in te vullen> "]
["duur van positieve impact van de maatregel t.o.v. de operationele fase",null,"<10% of enkel gedurende installatiefase","<50%","50-90 % ",">90%","gedurende volledige operationele fase met doorwerkend effect",null,{"$f":"_xlfn.XLOOKUP(H30,C30:G30,$C$25:$G$25,\"\")","v":""},null,"Percentueel aandeel van het natuurversterkende effect van de maatregel van de operationele fase","<in te vullen> "]
["mate van zekerheid tot behalen resultaat",null,"niet bevestigd door monitoring/ onderzoek","enkel theoretisch / hypothetisch effect","effect bewezen in lab/proef opstelling of door modellering","vergelijkbare maatregel effectief bewezen door monitoring/ onderzoek","maatregel bevestigd door monitoring/ onderzoek",null,{"$f":"IF(ISBLANK(H31),\"\",_xlfn.XLOOKUP(H31,C31:G31,$C$25:$G$25,\"\"))","v":""},null,"De mate van praktische toetsing van de ecologische effectiviteit van de maatregel vooraf ","<in te vullen> "]
["natuurversterkend - negatief",-5,-4,-3,-2,-1,0,null,{"$f":"IF(ISBLANK(H33),\"\",IF(I33<0,((I33+I34+I35)*2+I36)/35,I36/2))","v":""}]
["toename van aantal drukfactoren*","5 of meer",4,3,2,1,"geen",null,{"$f":"IF(H33=\"-\",\"GEEN optie; gelieve >2, 1 of 0 kiezen\",_xlfn.XLOOKUP(H33,B33:G33,$B$32:$G$32,\"\"))","v":""},null,"Betreft drukfactoren gebaseerd op OSPAR/KRM-descriptoren en Mariene Strategie Deel 1","<in te vullen> "]
["toename intensiteit, slachtoffers areaal, of duur drukfactor in project (hoogste telt)",">80 %","51-80 %","31-50 %","11-30 %","1-10 %","0-1 %",null,{"$f":"_xlfn.XLOOKUP(H34,B34:G34,$B$32:$G$32,\"\")","v":""},null,"Mate van toename drukfactor in intensiteit, slachtoffers en areaal","<in te vullen> "]
["zekerheid negatief effect",null,"bevestigd door monitoring/ onderzoek","vergelijkbare maatregel bewezen door monitoring/ onderzoek","effect bewezen in lab/proef opstelling of door modellering","enkel theoretisch / hypothetisch effect","niet bevestigd door monitoring/ onderzoek",null,{"$f":"IF(ISBLANK(H35),\"\",_xlfn.XLOOKUP(H35,B35:G35,$B$32:$G$32,\"\"))","v":""},null,"De mate van praktische toetsing van het negatieve effect van de maatregel vooraf ","<in te vullen> "]
["materiaalgebruik",null,null,"geen gebiedseigen en/of bio-afbreekbaar materiaal","deels gebiedseigen en/of bio-afbreekbaar materiaal","volledig gebiedseigen of bio-afbreekbaar materiaal","geen introductie van materiaal",null,{"$f":"IF(ISBLANK(H36),\"\",_xlfn.XLOOKUP(H36,B36:G36,$B$32:$G$32,\"\"))","v":""},null,"De mate waarin nieuw materiaal wordt geintroduceerd tot het milieu. Hier is uitgegaan van wel/geen gebiedseigen materiaal en wel/geen bio-afbreekbaar materiaal als opties","<in te vullen> "]
[]
["TRL",null,null,null,null,null,null,null,null,{"$f":"IF(I39>0,I39,\"\")","v":""}]
["TRL",null,null,null,null,null,null,null,{"$f":"IF(ISBLANK(H39),\"\",H39)","v":""},null,"Fase 1 (TRL 1-3) is de verkennende fase, waarin fundamenteel en toegepast onderzoek wordt uitgevoerd en het concept wordt getest. Fase 2 (TRL 4-6) is de ontwikkelfase, waarin prototypes op labschaal getest (TRL 4) en in een testomgeving gevalideerd (TRL 5) worden; om tot slot het concept uitgebreid te testen in een relevante testomgeving (TRL 6). Fase 3 (TRL 7-8) is de demonstratiefase, waar het concept in een operationele omgeving getest wordt (TRL 7) en de innovatie zijn definitieve vorm krijgt (TRL 8). In deze fase zijn certificeringen binnen en is bewezen dat aan de verwachtingen wordt voldaan. Fase 4, TRL 9, is een innovatie die zowel technisch als óók commercieel gereed is.","<in te vullen> "]
[]
["Impact ",null,null,null,null,null,null,null,null,{"$f":"IF(I42>0,I42,\"\")","v":""}]
["Maatregel leidt tot verandering van planning-, kosten- en/of materiele schade tijdens de installatiefase ",null,null,null,null,null,null,null,{"$f":"IF(ISBLANK(H42),\"\",H42)","v":""},null,"Impact op planning-, kosten-, en materiele schade","<in te vullen> "]